fUSD/lending_fUSD_20260509
["ID","MTS","AMOUNT","RATE_DAILY","PERIOD"]
[421913955,1778331527000,-158.58,0.00012988,2]
[421913948,1778331527000,-842.65,0.00011109,2]
[421913957,1778331530000,-166.32611349,0.00012988,2]
[421913958,1778331533000,2000.0,0.0003013,120]
[421913959,1778331538000,2000.0,0.0003013,120]
[421913961,1778331540000,223.64,0.0002709,120]
[421913960,1778331540000,150.0,0.000301,120]
[421913963,1778331576000,-842.65,0.00013259,2]
[421913964,1778331576000,-164.2,0.00013266,2]
[421913965,1778331576000,-2080.97,0.00013285,2]
[421913966,1778331583000,644.97,0.00030137,120]
[421913967,1778331602000,865.0,0.00029739,120]
[421913968,1778331626000,150.0,0.000157,120]
[421913970,1778331657000,187.3534534,0.00030136,120]
[421913972,1778331691000,1837.18012683,0.00030137,120]
[421913971,1778331691000,10000.0,0.00030137,120]
[421913973,1778331718000,307.27299464,0.0002,120]
[421913974,1778331790000,9996.07,0.0003,120]
[421913975,1778331810000,-636.98,0.00013073,2]
[421913976,1778331814000,150.0,0.000157,120]
[421913977,1778331875000,-167.13,0.00013411,2]
[421913979,1778331875000,-1200.0,0.00013607,2]
[421913981,1778331875000,-893.8,0.00013608,2]
[421913983,1778331875000,-6713.7,0.00013608,2]
[421913980,1778331875000,-300.0,0.00013607,2]
[421913982,1778331875000,-225.37,0.00013608,2]
[421913978,1778331875000,-500.0,0.00013507,2]
[421913988,1778331876000,-202.11,0.00013667,2]
[421913985,1778331876000,-2080.97,0.00013617,2]
[421913986,1778331876000,-842.65,0.00013617,2]
[421913987,1778331876000,-214.73073128,0.00013648,2]
[421913984,1778331876000,-1454.74,0.00013608,2]
[421913991,1778331876000,-855.06629437,0.000137,2]
[421913993,1778331876000,-150.0,0.00013761,2]
[421913994,1778331876000,-710.81297435,0.00013761,2]
[421913989,1778331876000,-200.0,0.00013699,2]
[421913990,1778331876000,-788.92,0.00013699,2]
[421913992,1778331876000,-2500.0,0.00013732,2]
[421913995,1778331880000,-2000.0,0.00013732,2]
[421913998,1778331915000,-150.0,0.00012526,2]
[421913997,1778331915000,-150.0,0.00012526,2]
[421913999,1778331915000,-150.0,0.00012526,2]
[421913996,1778331915000,-150.0,0.00012526,2]
[421914000,1778331915000,-150.0,0.00012526,2]
[421914002,1778331915000,-150.0,0.00013222,2]
[421914003,1778331915000,-150.0,0.00013222,2]
[421914001,1778331915000,-150.0,0.00012874,2]
[421914004,1778331915000,-105.0,0.00013283,2]
[421914006,1778331924000,2596.81565083,0.00030135,120]
[421914007,1778331929000,179.94457725,0.0003,120]
[421914008,1778331938000,-10000.0,0.000107,2]
[421914011,1778331939000,317.14757263,0.0003,120]
[421914009,1778331939000,-10000.0,0.000107,2]
[421914010,1778331939000,1268.7594536,0.000301,120]
[421914012,1778331940000,-10000.0,0.000107,2]
[421914013,1778331941000,-5776.9274018,0.000107,2]
[421914018,1778331952000,-150.0,0.00012758,2]
[421914014,1778331952000,-150.0,0.00012526,2]
[421914015,1778331952000,-150.0,0.00012526,2]
[421914017,1778331952000,-150.0,0.00012642,2]
[421914016,1778331952000,-150.0,0.00012526,2]
[421914020,1778331952000,-150.0,0.0001299,2]
[421914023,1778331952000,-150.0,0.00013222,2]
[421914021,1778331952000,-150.0,0.0001299,2]
[421914022,1778331952000,-150.0,0.00013106,2]
[421914024,1778331952000,-1095.0,0.00013283,2]
[421914025,1778331952000,-32348.51372599,0.00013284,2]
[421914019,1778331952000,-150.0,0.00012874,2]
[421914026,1778332000000,255.04,0.000152,120]
[421914046,1778332054000,-7153.33194095,0.00013762,2]
[421914045,1778332054000,-150.0,0.00013761,2]
[421914043,1778332054000,-759.31702565,0.00013761,2]
[421914044,1778332054000,-164.46466631,0.00013761,2]
[421914041,1778332054000,-500.0,0.000137,5]
[421914042,1778332054000,-840.7617,0.00013732,2]
[421914040,1778332054000,-150.0,0.00013686,2]
[421914038,1778332054000,-150.0,0.0001357,2]
[421914036,1778332054000,-150.0,0.00013454,2]
[421914035,1778332054000,-150.0,0.00013454,2]
[421914039,1778332054000,-200.0,0.000136,4]
[421914033,1778332054000,-150.0,0.00013338,2]
[421914034,1778332054000,-300.0,0.00013453,2]
[421914031,1778332054000,-9504.04627401,0.00013284,2]
[421914032,1778332054000,-250.0,0.00013311,2]
[421914029,1778332054000,-321.67,0.0001288,2]
[421914030,1778332054000,-7273.020196,0.00013217,2]
[421914048,1778332054000,-9890.58313822,0.00013762,2]
[421914037,1778332054000,-150.0,0.0001357,2]
[421914050,1778332054000,-800.0,0.000138,5]
[421914051,1778332054000,-150.0,0.00013802,2]
[421914049,1778332054000,-329.49494965,0.00013779,2]
[421914047,1778332054000,-418.75063308,0.00013762,2]
[421914069,1778332054000,-500.0,0.00013831,2]
[421914068,1778332054000,-500.0,0.00013831,2]
[421914066,1778332054000,-500.0,0.00013831,2]
[421914065,1778332054000,-500.0,0.00013831,2]
[421914064,1778332054000,-500.0,0.00013831,2]
[421914063,1778332054000,-500.0,0.00013831,2]
[421914062,1778332054000,-500.0,0.00013831,2]
[421914060,1778332054000,-500.0,0.00013831,2]
[421914067,1778332054000,-500.0,0.00013831,2]
[421914061,1778332054000,-267.3826074,0.00013831,2]
[421914057,1778332054000,-181.1590032,0.00013831,2]
[421914058,1778332054000,-462.33200019,0.00013831,2]
[421914056,1778332054000,-500.0,0.00013831,2]
[421914054,1778332054000,-249.31424134,0.00013831,2]
[421914052,1778332054000,-500.0,0.00013831,2]
[421914055,1778332054000,-500.0,0.00013831,2]
[421914053,1778332054000,-150.0,0.00013831,2]
[421914070,1778332054000,-500.0,0.00013831,2]
[421914059,1778332054000,-502.68380349,0.00013831,2]
[421914086,1778332055000,-500.0,0.00013831,2]
[421914080,1778332055000,-500.0,0.00013831,2]
[421914081,1778332055000,-500.0,0.00013831,2]
[421914082,1778332055000,-500.0,0.00013831,2]
[421914079,1778332055000,-500.0,0.00013831,2]
[421914078,1778332055000,-500.0,0.00013831,2]
[421914071,1778332055000,-500.0,0.00013831,2]
[421914075,1778332055000,-500.0,0.00013831,2]
[421914076,1778332055000,-500.0,0.00013831,2]
[421914074,1778332055000,-500.0,0.00013831,2]
[421914072,1778332055000,-521.56401995,0.00013831,2]
[421914073,1778332055000,-500.0,0.00013831,2]
[421914083,1778332055000,-500.0,0.00013831,2]
[421914077,1778332055000,-500.0,0.00013831,2]
[421914085,1778332055000,-500.0,0.00013831,2]
[421914092,1778332055000,-500.0,0.00013831,2]
[421914088,1778332055000,-500.0,0.00013831,2]
[421914101,1778332055000,-133053.56851302,0.00013832,2]
[421914100,1778332055000,-478.8,0.00013831,2]
[421914084,1778332055000,-500.0,0.00013831,2]
[421914098,1778332055000,-500.0,0.00013831,2]
[421914097,1778332055000,-500.0,0.00013831,2]
[421914096,1778332055000,-500.0,0.00013831,2]
[421914095,1778332055000,-500.0,0.00013831,2]
[421914099,1778332055000,-500.0,0.00013831,2]
[421914093,1778332055000,-500.0,0.00013831,2]
[421914091,1778332055000,-500.0,0.00013831,2]
[421914089,1778332055000,-500.0,0.00013831,2]
[421914087,1778332055000,-500.0,0.00013831,2]
[421914090,1778332055000,-500.0,0.00013831,2]
[421914094,1778332055000,-150.0,0.00013831,2]
[421914102,1778332058000,-315.0,0.00013832,2]
[421914113,1778332232000,-500.0,0.00013831,2]
[421914103,1778332232000,-3725.4,0.0001329,2]
[421914105,1778332232000,-1200.0,0.00013731,2]
[421914104,1778332232000,-236.27,0.00013322,2]
[421914106,1778332232000,-5000.0,0.00013732,2]
[421914107,1778332232000,-4224.15020537,0.00013749,2]
[421914109,1778332232000,-192.24565183,0.00013822,2]
[421914111,1778332232000,-679.45236454,0.00013831,2]
[421914116,1778332232000,-500.0,0.00013831,2]
[421914108,1778332232000,-6437.99874681,0.00013749,2]
[421914119,1778332232000,-218.57293355,0.00013831,2]
[421914115,1778332232000,-500.0,0.00013831,2]
[421914124,1778332232000,-150.0,0.00013832,2]
[421914120,1778332232000,-500.0,0.00013831,2]
[421914122,1778332232000,-150.0,0.00013831,2]
[421914125,1778332232000,-453070.62165725,0.00013832,2]
[421914121,1778332232000,-173.63240013,0.00013831,2]
[421914117,1778332232000,-467.156402,0.00013831,2]
[421914118,1778332232000,-174.51996894,0.00013831,2]
[421914123,1778332232000,-531.0,0.00013832,5]
[421914151,1778332239000,-25531.99955189,0.00013832,2]
[421914148,1778332239000,-21769.13830139,0.00013832,2]
[421914308,1778332241000,-500.0,0.00014073,2]
[421914306,1778332241000,-500.0,0.00014073,2]
[421914303,1778332241000,-500.0,0.00014073,2]
[421914304,1778332241000,-500.0,0.00014073,2]
[421914305,1778332241000,-163.82413912,0.00014073,2]
[421914296,1778332241000,-247.47462041,0.00013973,2]
[421914299,1778332241000,-501.52594068,0.00013973,2]
[421914297,1778332241000,-573.13980135,0.00013973,2]
[421914307,1778332241000,-500.0,0.00014073,2]
[421914301,1778332241000,-602.57091286,0.00014073,2]
[421914302,1778332241000,-500.0,0.00014073,2]
[421914309,1778332241000,-500.0,0.00014073,2]
[421914314,1778332241000,-9552.16786547,0.00014206,2]
[421914311,1778332241000,-154.70629453,0.00014073,2]
[421914312,1778332241000,-200.0,0.00014206,2]
[421914313,1778332241000,-151.0,0.00014206,2]
[421914315,1778332241000,-500.0,0.00014206,2]
[421914300,1778332241000,-500.0,0.00014073,2]
[421914317,1778332241000,-500.0,0.00014206,2]
[421914316,1778332241000,-151.0,0.00014206,2]
[421914318,1778332241000,-151.0,0.00014206,2]
[421914319,1778332241000,-500.0,0.00014206,2]
[421914321,1778332241000,-500.0,0.00014206,2]
[421914322,1778332241000,-151.0,0.00014206,2]
[421914320,1778332241000,-151.0,0.00014206,2]
[421914324,1778332241000,-500.0,0.00014206,2]
[421914310,1778332241000,-500.0,0.00014073,2]
[421914298,1778332241000,-500.92806458,0.00013973,2]
[421914291,1778332241000,-500.0,0.00013973,2]
[421914292,1778332241000,-500.0,0.00013973,2]
[421914323,1778332241000,-500.0,0.00014206,2]
[421914267,1778332241000,-769433.92427645,0.00013832,2]
[421914269,1778332241000,-9999.99,0.00013832,2]
[421914270,1778332241000,-13796.58,0.00013832,2]
[421914271,1778332241000,-2452.29,0.00013832,2]
[421914268,1778332241000,-999.99,0.00013832,2]
[421914274,1778332241000,-172.26154201,0.00013862,2]
[421914276,1778332241000,-150.0,0.00013918,2]
[421914272,1778332241000,-7638.24,0.00013832,2]
[421914277,1778332241000,-150.0,0.00013918,2]
[421914273,1778332241000,-545.16948577,0.00013849,2]
[421914275,1778332241000,-1100.0,0.000139,5]
[421914278,1778332241000,-150.0,0.00013918,2]
[421914279,1778332241000,-150.00000001,0.00013918,2]
[421914280,1778332241000,-150.0,0.00013918,2]
[421914281,1778332241000,-500.0,0.00013932,2]
[421914282,1778332241000,-350.50854249,0.00013932,2]
[421914283,1778332241000,-500.0,0.00013932,2]
[421914284,1778332241000,-500.0,0.00013932,2]
[421914285,1778332241000,-513.53,0.00013932,2]
[421914286,1778332241000,-476.0,0.00013933,5]
[421914287,1778332241000,-1500000.0,0.00013933,2]
[421914289,1778332241000,-501.82213511,0.00013973,2]
[421914288,1778332241000,-2080.97,0.00013949,2]
[421914293,1778332241000,-500.0,0.00013973,2]
[421914290,1778332241000,-500.0,0.00013973,2]
[421914295,1778332241000,-500.0,0.00013973,2]
[421914294,1778332241000,-500.0,0.00013973,2]
[421914325,1778332241000,-151.0,0.00014206,2]
[421914332,1778332241000,-151.0,0.00014206,2]
[421914330,1778332241000,-162.1794336,0.00014206,2]
[421914357,1778332241000,-1000.0,0.000144,2]
[421914361,1778332241000,-209.745422,0.00014413,2]
[421914362,1778332241000,-209.745422,0.00014413,2]
[421914364,1778332241000,-3128.3117546,0.00014444,2]
[421914365,1778332241000,-246109.5650623,0.00014444,2]
[421914367,1778332241000,-151.0,0.00014444,2]
[421914366,1778332241000,-50151.0898415,0.00014444,2]
[421914368,1778332241000,-151.0,0.00014444,2]
[421914363,1778332241000,-209.745422,0.00014413,2]
[421914370,1778332241000,-151.0,0.00014444,2]
[421914369,1778332241000,-151.0,0.00014444,2]
[421914374,1778332241000,-209.745422,0.00014444,2]
[421914372,1778332241000,-191.701488,0.00014444,2]
[421914373,1778332241000,-209.745422,0.00014444,2]
[421914375,1778332241000,-209.745422,0.00014444,2]
[421914377,1778332241000,-151.0,0.00014444,2]
[421914379,1778332241000,-297.677205,0.00014444,2]
[421914378,1778332241000,-297.677205,0.00014444,2]
[421914381,1778332241000,-297.677205,0.00014444,2]
[421914380,1778332241000,-297.677205,0.00014444,2]
[421914376,1778332241000,-209.745422,0.00014444,2]
[421914383,1778332241000,-153.167408,0.00014448,2]
[421914385,1778332241000,-299.99,0.00014504,2]
[421914384,1778332241000,-1043.0,0.000145,2]
[421914386,1778332241000,-7266.98,0.00014504,2]
[421914382,1778332241000,-45487.01862777,0.00014448,2]
[421914327,1778332241000,-151.0,0.00014206,2]
[421914360,1778332241000,-209.745422,0.00014413,2]
[421914359,1778332241000,-151.0,0.00014413,2]
[421914371,1778332241000,-151.0,0.00014444,2]
[421914356,1778332241000,-1772.0,0.000144,2]
[421914358,1778332241000,-151.0,0.00014413,2]
[421914326,1778332241000,-500.0,0.00014206,2]
[421914328,1778332241000,-503.63032859,0.00014206,2]
[421914331,1778332241000,-151.0,0.00014206,2]
[421914333,1778332241000,-151.0,0.00014206,2]
[421914334,1778332241000,-151.0,0.00014206,2]
[421914335,1778332241000,-151.0,0.00014206,2]
[421914336,1778332241000,-151.0,0.00014206,2]
[421914337,1778332241000,-174.61919141,0.00014206,2]
[421914339,1778332241000,-2080.17592889,0.00014206,2]
[421914338,1778332241000,-232.93493726,0.00014206,2]
[421914340,1778332241000,-6437.99874679,0.00014232,2]
[421914341,1778332241000,-9905.5980765,0.00014261,2]
[421914343,1778332241000,-4000.0,0.000143,2]
[421914329,1778332241000,-151.0,0.00014206,2]
[421914354,1778332241000,-3804.9577535,0.00014366,2]
[421914342,1778332241000,-2080.97,0.00014282,2]
[421914352,1778332241000,-985.3280253,0.00014366,2]
[421914353,1778332241000,-82542.0852327,0.00014366,2]
[421914351,1778332241000,-2000.0,0.00014348,2]
[421914355,1778332241000,-788.92,0.00014384,2]
[421914350,1778332241000,-561.3419,0.00014348,2]
[421914346,1778332241000,-242.82576357,0.00014344,2]
[421914347,1778332241000,-222.42664223,0.00014344,2]
[421914345,1778332241000,-10178.23880675,0.00014316,2]
[421914344,1778332241000,-1000.0,0.000143,2]
[421914348,1778332241000,-14204.60313056,0.00014344,2]
[421914349,1778332241000,-8698.6454808,0.00014344,2]
[421914425,1778332242000,-1111.47870486,0.00014734,2]
[421914430,1778332242000,-297.677205,0.00014764,2]
[421914429,1778332242000,-170.517712,0.00014764,2]
[421914427,1778332242000,-181.08010149,0.00014754,2]
[421914423,1778332242000,-152.0,0.00014662,7]
[421914420,1778332242000,-500.0,0.00014621,2]
[421914421,1778332242000,-500.0,0.00014621,2]
[421914422,1778332242000,-788.92,0.00014658,2]
[421914424,1778332242000,-6437.99874679,0.00014716,2]
[421914419,1778332242000,-500.0,0.00014621,2]
[421914431,1778332242000,-297.677205,0.00014764,2]
[421914417,1778332242000,-500.0,0.00014621,2]
[421914426,1778332242000,-200.0,0.00014754,2]
[421914428,1778332242000,-2157.14243826,0.00014754,2]
[421914439,1778332242000,-300.0,0.000149,2]
[421914437,1778332242000,-333.33333,0.0001485,2]
[421914434,1778332242000,-363.42697493,0.0001478,2]
[421914438,1778332242000,-418.98564382,0.00014868,2]
[421914435,1778332242000,-333.33333,0.0001485,2]
[421914433,1778332242000,-297.677205,0.00014764,2]
[421914436,1778332242000,-333.33333,0.0001485,2]
[421914444,1778332242000,-167.26481871,0.00014973,2]
[421914441,1778332242000,-777.24,0.00014932,2]
[421914440,1778332242000,-1400.0,0.000149,5]
[421914445,1778332242000,-236.27,0.00014988,2]
[421914442,1778332242000,-255.0,0.00014951,2]
[421914443,1778332242000,-12562.564851,0.00014967,2]
[421914449,1778332242000,-1126.18675361,0.00015,2]
[421914432,1778332242000,-297.677205,0.00014764,2]
[421914418,1778332242000,-500.0,0.00014621,2]
[421914387,1778332242000,-9045.24,0.00014504,2]
[421914414,1778332242000,-2500.0,0.00014619,2]
[421914448,1778332242000,-1000.0,0.00015,2]
[421914388,1778332242000,-49300.2,0.00014504,2]
[421914391,1778332242000,-1000.0,0.00014521,2]
[421914389,1778332242000,-446.53624138,0.0001451,2]
[421914394,1778332242000,-502.82734984,0.00014521,2]
[421914393,1778332242000,-1000.0,0.00014521,2]
[421914390,1778332242000,-1000.0,0.00014521,2]
[421914392,1778332242000,-1000.0,0.00014521,2]
[421914395,1778332242000,-15542.23407616,0.00014524,2]
[421914396,1778332242000,-165.13,0.00014607,2]
[421914399,1778332242000,-5000.0,0.00014612,2]
[421914400,1778332242000,-300.0,0.00014612,2]
[421914397,1778332242000,-152.0,0.00014608,7]
[421914416,1778332242000,-2500.0,0.00014619,2]
[421914398,1778332242000,-2000.0,0.00014612,2]
[421914402,1778332242000,-300.0,0.00014612,2]
[421914404,1778332242000,-300.0,0.00014612,2]
[421914405,1778332242000,-150.0,0.00014612,2]
[421914406,1778332242000,-205.78818353,0.00014612,2]
[421914408,1778332242000,-334.22796898,0.00014612,2]
[421914403,1778332242000,-300.0,0.00014612,2]
[421914407,1778332242000,-221.78984733,0.00014612,2]
[421914409,1778332242000,-196.68309839,0.00014612,2]
[421914411,1778332242000,-2080.97,0.00014614,2]
[421914415,1778332242000,-2500.0,0.00014619,2]
[421914413,1778332242000,-2500.0,0.00014619,2]
[421914410,1778332242000,-250.0,0.00014612,2]
[421914412,1778332242000,-2500.0,0.00014619,2]
[421914401,1778332242000,-300.0,0.00014612,2]
[421914447,1778332242000,-1000.0,0.00015,2]
[421914455,1778332242000,-333.33334,0.00015,2]
[421914446,1778332242000,-1231327.52220018,0.00015,2]
[421914479,1778332242000,-6437.99874679,0.00015199,2]
[421914486,1778332242000,-308.0,0.000153,2]
[421914485,1778332242000,-441.0,0.000153,2]
[421914484,1778332242000,-314.0,0.000153,2]
[421914490,1778332242000,-9999.99,0.0001531,2]
[421914488,1778332242000,-187.78006525,0.00015302,2]
[421914487,1778332242000,-200.0,0.00015302,2]
[421914489,1778332242000,-2236.95670848,0.00015302,2]
[421914492,1778332242000,-11323.48,0.0001531,2]
[421914493,1778332242000,-160.0,0.00015347,7]
[421914494,1778332242000,-1526.297694,0.00015347,7]
[421914491,1778332242000,-11051.06,0.0001531,2]
[421914495,1778332242000,-2892.595388,0.00015347,7]
[421914478,1778332242000,-158.58,0.00015153,2]
[421914496,1778332242000,-350.0,0.00015443,2]
[421914501,1778332242000,-172.0,0.000155,2]
[421914499,1778332242000,-382.525486,0.0001545,7]
[421914498,1778332242000,-271.262743,0.0001545,7]
[421914500,1778332242000,-2716.17,0.00015464,2]
[421914502,1778332242000,-274.39986112,0.000155,2]
[421914505,1778332242000,-540.25529322,0.000155,2]
[421914506,1778332242000,-806.11072531,0.000155,2]
[421914504,1778332242000,-690.59682175,0.000155,2]
[421914507,1778332242000,-171.14145424,0.00015501,2]
[421914503,1778332242000,-871.11583352,0.000155,2]
[421914508,1778332242000,-223.54335926,0.00015501,2]
[421914509,1778332242000,-243.2432627,0.00015501,2]
[421914451,1778332242000,-151.0,0.00015,2]
[421914497,1778332242000,-160.0,0.0001545,7]
[421914483,1778332242000,-1000.0,0.000153,2]
[421914510,1778332242000,-275.94526429,0.00015501,2]
[421914480,1778332242000,-150.0,0.000152,2]
[421914481,1778332242000,-290.753375,0.00015202,2]
[421914452,1778332242000,-151.0,0.00015,2]
[421914511,1778332242000,-9890.58313821,0.00015515,2]
[421914453,1778332242000,-151.0,0.00015,2]
[421914456,1778332242000,-333.33334,0.00015,2]
[421914454,1778332242000,-333.33333,0.00015,2]
[421914457,1778332242000,-151.0,0.00015,2]
[421914458,1778332242000,-209.745422,0.00015,2]
[421914462,1778332242000,-297.677205,0.00015,2]
[421914459,1778332242000,-209.745422,0.00015,2]
[421914463,1778332242000,-297.677205,0.00015,2]
[421914461,1778332242000,-209.745422,0.00015,2]
[421914464,1778332242000,-297.677205,0.00015,2]
[421914460,1778332242000,-209.745422,0.00015,2]
[421914450,1778332242000,-830.58,0.00015,2]
[421914465,1778332242000,-297.677205,0.00015,2]
[421914482,1778332242000,-9890.58313821,0.00015265,2]
[421914477,1778332242000,-1200.0,0.00015104,2]
[421914473,1778332242000,-1500.0,0.00015068,2]
[421914474,1778332242000,-151.0,0.00015068,2]
[421914468,1778332242000,-201.89418611,0.00015,2]
[421914475,1778332242000,-450.0,0.00015068,2]
[421914471,1778332242000,-1001.58777067,0.00015068,2]
[421914472,1778332242000,-1283.73471914,0.00015068,2]
[421914470,1778332242000,-595.50617247,0.00015068,2]
[421914466,1778332242000,-163.0,0.00015,2]
[421914467,1778332242000,-6900.0,0.00015,2]
[421914469,1778332242000,-9890.58313821,0.00015014,2]
[421914476,1778332242000,-150.0,0.00015068,2]
[421914554,1778332243000,-1653.1,0.00016438,2]
[421914557,1778332243000,-151.0,0.00016438,2]
[421914553,1778332243000,-1293.2805824,0.00016398,2]
[421914551,1778332243000,-225.53497912,0.00016398,2]
[421914540,1778332243000,-350.0,0.00016169,2]
[421914548,1778332243000,-565.914115,0.00016309,7]
[421914549,1778332243000,-430.56793,0.00016309,2]
[421914545,1778332243000,-369.90374,0.00016223,7]
[421914547,1778332243000,-2000.0,0.00016235,2]
[421914546,1778332243000,-350.0,0.00016226,2]
[421914550,1778332243000,-200.0,0.00016398,2]
[421914556,1778332243000,-151.0,0.00016438,2]
[421914564,1778332243000,-500.0,0.00016438,2]
[421914559,1778332243000,-151.0,0.00016438,2]
[421914558,1778332243000,-151.0,0.00016438,2]
[421914562,1778332243000,-500.0,0.00016438,2]
[421914560,1778332243000,-500.0,0.00016438,2]
[421914561,1778332243000,-271.72797687,0.00016438,2]
[421914563,1778332243000,-500.0,0.00016438,2]
[421914572,1778332243000,-151.0,0.00016438,2]
[421914566,1778332243000,-151.0,0.00016438,2]
[421914565,1778332243000,-151.0,0.00016438,2]
[421914570,1778332243000,-151.0,0.00016438,2]
[421914568,1778332243000,-151.0,0.00016438,2]
[421914567,1778332243000,-151.0,0.00016438,2]
[421914543,1778332243000,-168.49,0.00016184,2]
[421914555,1778332243000,-498.60043372,0.00016438,2]
[421914544,1778332243000,-157.84052447,0.000162,2]
[421914530,1778332243000,-9890.58313821,0.00016016,2]
[421914542,1778332243000,-929.0,0.0001617,2]
[421914515,1778332243000,-160.0,0.00015533,2]
[421914513,1778332243000,-415.003684,0.00015533,7]
[421914512,1778332243000,-160.0,0.00015533,7]
[421914514,1778332243000,-670.007369,0.00015533,7]
[421914516,1778332243000,-315.749815,0.00015533,2]
[421914518,1778332243000,-2000.0,0.00015616,2]
[421914517,1778332243000,-471.499631,0.00015533,2]
[421914520,1778332243000,-167.13,0.00015625,2]
[421914519,1778332243000,-250.0,0.00015616,2]
[421914522,1778332243000,-6437.99874679,0.00015683,2]
[421914521,1778332243000,-150.0,0.0001566,2]
[421914524,1778332243000,-9890.58313821,0.00015766,2]
[421914523,1778332243000,-193.280135,0.00015696,7]
[421914526,1778332243000,-194.72792766,0.0001585,2]
[421914525,1778332243000,-200.0,0.0001585,2]
[421914528,1778332243000,-300.0,0.00016,2]
[421914527,1778332243000,-2319.72410669,0.0001585,2]
[421914531,1778332243000,-4224.15020531,0.00016075,2]
[421914529,1778332243000,-157.84052447,0.00016,2]
[421914532,1778332243000,-157.84052447,0.000161,2]
[421914535,1778332243000,-150.0,0.00016137,2]
[421914537,1778332243000,-350.0,0.00016164,2]
[421914536,1778332243000,-985.83123727,0.00016164,2]
[421914538,1778332243000,-6437.99874679,0.00016166,2]
[421914534,1778332243000,-9999.99,0.00016116,2]
[421914533,1778332243000,-2081.315037,0.00016114,7]
[421914539,1778332243000,-433.0,0.00016168,2]
[421914541,1778332243000,-417.0,0.0001617,2]
[421914577,1778332243000,-151.0,0.00016438,2]
[421914573,1778332243000,-151.0,0.00016438,2]
[421914576,1778332243000,-151.0,0.00016438,2]
[421914615,1778332243000,-500.39708524,0.00016438,2]
[421914619,1778332243000,-500.11996036,0.00016438,2]
[421914618,1778332243000,-508.7582812,0.00016438,2]
[421914616,1778332243000,-409.90550801,0.00016438,2]
[421914617,1778332243000,-500.34334599,0.00016438,2]
[421914620,1778332243000,-500.83620579,0.00016438,2]
[421914621,1778332243000,-517.99061904,0.00016438,2]
[421914622,1778332243000,-492.88229526,0.00016438,2]
[421914624,1778332243000,-151.0,0.00016438,2]
[421914623,1778332243000,-151.0,0.00016438,2]
[421914625,1778332243000,-151.0,0.00016438,2]
[421914626,1778332243000,-151.0,0.00016438,2]
[421914632,1778332243000,-151.0,0.00016438,2]
[421914628,1778332243000,-151.0,0.00016438,2]
[421914629,1778332243000,-151.0,0.00016438,2]
[421914633,1778332243000,-298.06808,0.00016438,2]
[421914630,1778332243000,-151.0,0.00016438,2]
[421914631,1778332243000,-151.0,0.00016438,2]
[421914634,1778332243000,-151.0,0.00016496,2]
[421914635,1778332243000,-151.0,0.00016496,2]
[421914638,1778332243000,-1203.596986,0.00016496,2]
[421914639,1778332243000,-1203.596986,0.00016496,2]
[421914636,1778332243000,-1203.596986,0.00016496,2]
[421914637,1778332243000,-1203.596986,0.00016496,2]
[421914641,1778332243000,-6437.99874679,0.0001665,2]
[421914640,1778332243000,-164.2,0.00016583,2]
[421914575,1778332243000,-151.0,0.00016438,2]
[421914614,1778332243000,-163.77593572,0.00016438,2]
[421914613,1778332243000,-501.31785303,0.00016438,2]